2CCN - Level 2 Cost Centre Name,,9CCN - Level 9 Cost Centre Name,9CCC - Level 9 Cost Centre Code,9AN - Level 9 Account Name,9AC - Level 9 Account Code,Date posted,Date of transaction,Merchant Name,Merchant City,Merchant State,Merchant Zip Code,Originating Account Name,Originating Account Number,MCC/SIC Code,MCC Description,Original Amount,Currency,Conversion Rate,Billed Amount,Debit Credit,Reference Number,Statement Cycle,Account Name
Gloucester City Council,23UE,Museum of Gloucester,MU002,General Supplies/Materials,3025,04/09/2019,03/09/2019,SAFPRO INDUSTRIAL SUPP,GLOUCESTER,,GL2 5EU,REDACTED,556*********2362,5085,INDUSTRIAL SUPPLIES NOT ELSEWHERE CLASSI,48,Pound Sterling (826),1,48,Debit,5.5542E+22,02/10/2019,GLOUCESTER CITY COUNCIL
Gloucester City Council,23UE,Museum of Gloucester,MU002,Exhibition Costs,3021,04/09/2019,03/09/2019,DAUPHIN ACRYLIC DE,OXFORDSHIRE,,OX9 7BE,REDACTED,556*********2362,5950,GLASSWARE AND CRYSTAL STORES,178.32,Pound Sterling (826),1,178.32,Debit,8.54815E+22,02/10/2019,GLOUCESTER CITY COUNCIL
Gloucester City Council,23UE,Museum of Gloucester,MU002,Exhibition Costs,3021,04/09/2019,03/09/2019,CABLECRAFT.CO.UK,01582 606033,,LU55DD,REDACTED,556*********2362,5065,ELECTRICAL PARTS AND EQUIPMENT,15.26,Pound Sterling (826),1,15.26,Debit,8.54815E+22,02/10/2019,GLOUCESTER CITY COUNCIL
Gloucester City Council,23UE,Museum of Gloucester,MU002,General Supplies/Materials,3025,06/09/2019,05/09/2019,THE WORKS,GLOUCESTER,,GL1 2NG,REDACTED,556*********2362,5310,DISCOUNT STORES,29.05,Pound Sterling (826),1,29.05,Debit,8.54815E+22,02/10/2019,GLOUCESTER CITY COUNCIL
Gloucester City Council,23UE,Museum of Gloucester,MU002,Exhibition Costs,3021,09/09/2019,07/09/2019,B & Q 1179,GLOUCESTER,,GL12SG,REDACTED,556*********2362,5200,HOME SUPPLY WAREHOUSE STORES,166.62,Pound Sterling (826),1,166.62,Debit,8.54815E+22,02/10/2019,GLOUCESTER CITY COUNCIL
Gloucester City Council,23UE,Museum of Gloucester Catering,MU004,Hospitality & Refreshments,3104,09/09/2019,07/09/2019,ASDA SUPERSTORE,GLOUCESTER,GBR,GL1 1DS,REDACTED,556*********2362,5411,"GROCERY STORES, SUPERMARKETS",11.65,Pound Sterling (826),1,11.65,Debit,1.53778E+22,02/10/2019,GLOUCESTER CITY COUNCIL
Gloucester City Council,23UE,Museum of Gloucester,MU002,Exhibition Costs,3021,13/09/2019,12/09/2019,Amazon.co.uk*MA3PJ4HR4,AMAZON.CO.UK,LUX,L2338,REDACTED,556*********2362,5969,ALL OTHER DIRECT MARKETERS,24.95,Pound Sterling (826),1,24.95,Debit,5.2692E+22,02/10/2019,GLOUCESTER CITY COUNCIL
Gloucester City Council,23UE,Museum of Gloucester,MU002,General Supplies/Materials,3025,16/09/2019,13/09/2019,AMZNMktplace,amazon.co.uk,GBR,EC2A 2FA,REDACTED,556*********2362,5999,MISCELLANEOUS AND RETAIL STORES,36.99,Pound Sterling (826),1,36.99,Debit,5.52047E+22,02/10/2019,GLOUCESTER CITY COUNCIL
Gloucester City Council,23UE,Museum of Gloucester,MU002,Exhibition Costs,3021,16/09/2019,14/09/2019,WHALEYS /BRADFORD/ LTD,BRADFORD,,BD7 4EQ,REDACTED,556*********2362,5999,MISCELLANEOUS AND RETAIL STORES,23.1,Pound Sterling (826),1,23.1,Debit,5.5542E+22,02/10/2019,GLOUCESTER CITY COUNCIL
Gloucester City Council,23UE,Museum of Gloucester Catering,MU004,Hospitality & Refreshments,3104,16/09/2019,14/09/2019,ASDA SUPERSTORE,GLOUCESTER,GBR,GL1 1DS,REDACTED,556*********2362,5411,"GROCERY STORES, SUPERMARKETS",15.63,Pound Sterling (826),1,15.63,Debit,1.53778E+22,02/10/2019,GLOUCESTER CITY COUNCIL
Gloucester City Council,23UE,Museum of Gloucester,MU002,General Supplies/Materials,3025,16/09/2019,15/09/2019,AMZNMktplace,amazon.co.uk,GBR,EC2A 2FA,REDACTED,556*********2362,5999,MISCELLANEOUS AND RETAIL STORES,42.09,Pound Sterling (826),1,42.09,Debit,5.52047E+22,02/10/2019,GLOUCESTER CITY COUNCIL
Gloucester City Council,23UE,Museum of Gloucester,MU002,General Supplies/Materials,3025,16/09/2019,16/09/2019,Amazon.co.uk*MA2O97Q94,AMAZON.CO.UK,LUX,L2338,REDACTED,556*********2362,5969,ALL OTHER DIRECT MARKETERS,121.76,Pound Sterling (826),1,121.76,Debit,5.2692E+22,02/10/2019,GLOUCESTER CITY COUNCIL
Gloucester City Council,23UE,Museum of Gloucester,MU002,General Supplies/Materials,3025,16/09/2019,15/09/2019,B & Q 1179,GLOUCESTER,,GL12SG,REDACTED,556*********2362,5200,HOME SUPPLY WAREHOUSE STORES,12.17,Pound Sterling (826),1,12.17,Debit,8.54815E+22,02/10/2019,GLOUCESTER CITY COUNCIL
Gloucester City Council,23UE,Museum of Gloucester,MU002,Exhibition Costs,3021,18/09/2019,17/09/2019,SP * CONSERVATION RESO,BICESTER,LND,OX25 5HA,REDACTED,556*********2362,5734,COMPUTER SOFTWARE STORES,31.86,Pound Sterling (826),1,31.86,Debit,8.53839E+22,02/10/2019,GLOUCESTER CITY COUNCIL
Gloucester City Council,23UE,Museum of Gloucester,MU002,Exhibition Costs,3021,18/09/2019,17/09/2019,Amazon.co.uk*MA65796N4,AMAZON.CO.UK,LUX,L2338,REDACTED,556*********2362,5969,ALL OTHER DIRECT MARKETERS,160.39,Pound Sterling (826),1,160.39,Debit,5.2692E+22,02/10/2019,GLOUCESTER CITY COUNCIL
Gloucester City Council,23UE,Museum of Gloucester,MU002,Exhibition Costs,3021,18/09/2019,17/09/2019,WWW.MODELSHOP.CO.UK,2072641287,,E1 8AU,REDACTED,556*********2362,5970,"ARTIST SUPPLY STORES, CRAFT SHOPS",17.96,Pound Sterling (826),1,17.96,Debit,5.55044E+22,02/10/2019,GLOUCESTER CITY COUNCIL
Gloucester City Council,23UE,Museum of Gloucester Catering,MU004,Hospitality & Refreshments,3104,19/09/2019,18/09/2019,ASDA SUPERSTORE,GLOUCESTER,GBR,GL1 1DS,REDACTED,556*********2362,5411,"GROCERY STORES, SUPERMARKETS",1.48,Pound Sterling (826),1,1.48,Debit,4.53778E+22,02/10/2019,GLOUCESTER CITY COUNCIL
Gloucester City Council,23UE,Museum of Gloucester Catering,MU004,Hospitality & Refreshments,3104,23/09/2019,21/09/2019,ASDA SUPERSTORE,GLOUCESTER,GBR,GL1 1DS,REDACTED,556*********2362,5411,"GROCERY STORES, SUPERMARKETS",8.42,Pound Sterling (826),1,8.42,Debit,5.37776E+21,02/10/2019,GLOUCESTER CITY COUNCIL
Gloucester City Council,23UE,Museum of Gloucester,MU002,Exhibition Costs,3021,24/09/2019,23/09/2019,B & Q 1179,GLOUCESTER,,GL12SG,REDACTED,556*********2362,5200,HOME SUPPLY WAREHOUSE STORES,30.3,Pound Sterling (826),1,30.3,Debit,8.54815E+22,02/10/2019,GLOUCESTER CITY COUNCIL
Gloucester City Council,23UE,Museum of Gloucester Catering,MU004,Hospitality & Refreshments,3104,30/09/2019,27/09/2019,ASDA SUPERSTORE,GLOUCESTER,GBR,GL1 1DS,REDACTED,556*********2362,5411,"GROCERY STORES, SUPERMARKETS",2.18,Pound Sterling (826),1,2.18,Debit,4.53778E+22,02/10/2019,GLOUCESTER CITY COUNCIL
Gloucester City Council,23UE,Members Support,DS002,Members Travel Expenses,3609,06/09/2019,05/09/2019,Trainline,London,GBR,1445,REDACTED,556*********7811,4112,PASSENGER RAILWAYS,10.75,Pound Sterling (826),1,10.75,Debit,8.51301E+22,02/10/2019,GLOUCESTER CITY COUNCIL
Gloucester City Council,23UE,Head of Communities,PP001,Public Transport - Staff,2402,11/09/2019,10/09/2019,Trainline,London,GBR,1445,REDACTED,556*********7811,4112,PASSENGER RAILWAYS,118.3,Pound Sterling (826),1,118.3,Debit,8.51301E+22,02/10/2019,GLOUCESTER CITY COUNCIL
Gloucester City Council,23UE,Members Support,DS002,Members Travel Expenses,3609,13/09/2019,11/09/2019,PREMIER INN 44033690,LONDON WATERL,,SE1 7PB,REDACTED,556*********7811,3811,PREMIER INN,190.5,Pound Sterling (826),1,190.5,Debit,5.5542E+22,02/10/2019,GLOUCESTER CITY COUNCIL
Gloucester City Council,23UE,Head of Regeneration & Economic Development,MT005,Conference Fees,553,13/09/2019,12/09/2019,EB *RIBA GLOUCESTERSHI,801-413-7200,IRL,DUBLIN 8,REDACTED,556*********7811,7399,BUSINESS SERVICES NOT ELSEWHERE CLASSIFIED,10,Pound Sterling (826),1,10,Debit,1.52763E+22,02/10/2019,GLOUCESTER CITY COUNCIL
Gloucester City Council,23UE,Head of Communities,PP001,Public Transport - Staff,2402,17/09/2019,16/09/2019,Trainline,London,GBR,1445,REDACTED,556*********7811,4112,PASSENGER RAILWAYS,27.65,Pound Sterling (826),1,27.65,Debit,8.51301E+22,02/10/2019,GLOUCESTER CITY COUNCIL
Gloucester City Council,23UE,Head of Communities,PP001,Conference Fees,553,18/09/2019,17/09/2019,TRAVELODGE GB0000,THAME,,OX9 3AT,REDACTED,556*********7811,3615,TRAVELODGE,88.24,Pound Sterling (826),1,88.24,Debit,5.55044E+22,02/10/2019,GLOUCESTER CITY COUNCIL
Gloucester City Council,23UE,Managing Director & Directors,MT001,Public Transport - Staff,2402,17/09/2019,16/09/2019,Trainline,London,GBR,1445,REDACTED,556*********1418,4112,PASSENGER RAILWAYS,96.5,Pound Sterling (826),1,96.5,Debit,8.51301E+22,02/10/2019,GLOUCESTER CITY COUNCIL
Gloucester City Council,23UE,Elections,DS004,Public Transport - Staff,2402,17/09/2019,16/09/2019,Trainline,London,GBR,1445,REDACTED,556*********1418,4112,PASSENGER RAILWAYS,109.6,Pound Sterling (826),1,109.6,Debit,8.51301E+22,02/10/2019,GLOUCESTER CITY COUNCIL
Gloucester City Council,23UE,Managing Director & Directors,MT001,Public Transport - Staff,2402,17/09/2019,16/09/2019,Trainline,London,GBR,1445,REDACTED,556*********1418,4112,PASSENGER RAILWAYS,42,Pound Sterling (826),1,42,Debit,8.51301E+22,02/10/2019,GLOUCESTER CITY COUNCIL
Gloucester City Council,23UE,Managing Director & Directors,MT001,Public Transport - Staff,2402,17/09/2019,16/09/2019,Trainline,London,GBR,1445,REDACTED,556*********1418,4112,PASSENGER RAILWAYS,29.75,Pound Sterling (826),1,29.75,Debit,8.51301E+22,02/10/2019,GLOUCESTER CITY COUNCIL
Gloucester City Council,23UE,Managing Director & Directors,MT001,Public Transport - Staff,2402,23/09/2019,20/09/2019,Trainline,London,GBR,1445,REDACTED,556*********1418,4112,PASSENGER RAILWAYS,149.5,Pound Sterling (826),1,149.5,Debit,8.51301E+22,02/10/2019,GLOUCESTER CITY COUNCIL
Gloucester City Council,23UE,Members Support,DS002,Members Travel Expenses,3609,24/09/2019,23/09/2019,Trainline,London,GBR,1445,REDACTED,556*********1418,4112,PASSENGER RAILWAYS,89.2,Pound Sterling (826),1,89.2,Debit,8.51301E+22,02/10/2019,GLOUCESTER CITY COUNCIL
Gloucester City Council,23UE,Countryside Unit,EP003,Building Repairs and Maintenance,1001,17/09/2019,16/09/2019,REPLACEMENT KEYS LTD,DUNSTABLE,LND,LU6 3BJ,REDACTED,556*********6734,5399,MISCELLANEOUS GENERAL MERCHANDISE STORES,9.85,Pound Sterling (826),1,9.85,Debit,8.53839E+22,02/10/2019,GLOUCESTER CITY COUNCIL
Gloucester City Council,23UE,Countryside Unit,EP003,General Supplies/Materials,3025,20/09/2019,19/09/2019,PAYPAL *HOPEWELLSPE,35314369001,GBR,TW91EH,REDACTED,556*********6734,5995,PET SHOPS-PET FOOD AND SUPPLY STORES,18.99,Pound Sterling (826),1,18.99,Debit,8.51301E+22,02/10/2019,GLOUCESTER CITY COUNCIL
Gloucester City Council,23UE,Guildhall Bar and Caf�,GH005,Catering Provisions,3103,11/09/2019,10/09/2019,BOOKER LIMITED GLOUCES,GLOUCESTER,GBR,GL4 3RT,REDACTED,556*********1155,5811,CATERERS,26.33,Pound Sterling (826),1,26.33,Debit,5.51842E+22,02/10/2019,GLOUCESTER CITY COUNCIL
Gloucester City Council,23UE,Blackfriars ,GH010,Equipment and Furniture,3001,12/09/2019,11/09/2019,AMZNMktplace,amazon.co.uk,GBR,EC2A 2FA,REDACTED,556*********1155,5999,MISCELLANEOUS AND RETAIL STORES,74.99,Pound Sterling (826),1,74.99,Debit,5.52047E+22,02/10/2019,GLOUCESTER CITY COUNCIL
Gloucester City Council,23UE,Blackfriars ,GH010,Equipment and Furniture,3001,16/09/2019,13/09/2019,ARGOS LTD,GLOUCESTER,,GL12SR,REDACTED,556*********1155,5310,DISCOUNT STORES,89.99,Pound Sterling (826),1,89.99,Debit,8.54815E+22,02/10/2019,GLOUCESTER CITY COUNCIL
Gloucester City Council,23UE,Blackfriars ,GH010,Cleaning Services & Materials,1500,16/09/2019,13/09/2019,B&M RETAIL LTD,HS GLOUCESTER,,GL12DH,REDACTED,556*********1155,5310,DISCOUNT STORES,14.95,Pound Sterling (826),1,14.95,Debit,8.54815E+22,02/10/2019,GLOUCESTER CITY COUNCIL
Gloucester City Council,23UE,Guildhall Bar and Caf�,GH005,Catering Provisions,3103,19/09/2019,18/09/2019,SAINSBURYS SACAT 0771,GLOUCESTER,GBR,GL1 2AG,REDACTED,556*********1155,5411,"GROCERY STORES, SUPERMARKETS",5.7,Pound Sterling (826),1,5.7,Debit,2.54252E+22,02/10/2019,GLOUCESTER CITY COUNCIL
Gloucester City Council,23UE,Guildhall Bar and Caf�,GH005,Catering Provisions,3103,20/09/2019,19/09/2019,SAINSBURYS 0608,BARNWOOD,GBR,GL4 3RT,REDACTED,556*********1155,5411,"GROCERY STORES, SUPERMARKETS",10.5,Pound Sterling (826),1,10.5,Debit,2.54252E+22,02/10/2019,GLOUCESTER CITY COUNCIL
Gloucester City Council,23UE,Guildhall Bar and Caf�,GH005,Catering Provisions,3103,20/09/2019,19/09/2019,BOOKER LIMITED GLOUCES,GLOUCESTER,GBR,GL4 3RT,REDACTED,556*********1155,5811,CATERERS,80.22,Pound Sterling (826),1,80.22,Debit,5.51842E+22,02/10/2019,GLOUCESTER CITY COUNCIL
Gloucester City Council,23UE,Blackfriars ,GH010,Catering Provisions,3103,26/09/2019,25/09/2019,SAINSBURYS SACAT 0608,GLOUCESTER,GBR,GL4 3RT,REDACTED,556*********1155,5411,"GROCERY STORES, SUPERMARKETS",10,Pound Sterling (826),1,10,Debit,2.54252E+22,02/10/2019,GLOUCESTER CITY COUNCIL
Gloucester City Council,23UE,Blackfriars ,GH010,Catering Provisions,3103,26/09/2019,25/09/2019,BOOKER LIMITED GLOUCES,GLOUCESTER,GBR,GL4 3RT,REDACTED,556*********1155,5811,CATERERS,88.33,Pound Sterling (826),1,88.33,Debit,5.51842E+22,02/10/2019,GLOUCESTER CITY COUNCIL
Gloucester City Council,23UE,Blackfriars ,GH010,Catering Provisions,3103,27/09/2019,25/09/2019,W M MORRISON STORE,575 GLOUCESTE,,GL1 4BD,REDACTED,556*********1155,5411,"GROCERY STORES, SUPERMARKETS",6.5,Pound Sterling (826),1,6.5,Debit,8.54815E+22,02/10/2019,GLOUCESTER CITY COUNCIL
Gloucester City Council,23UE,Guildhall Bar and Caf�,GH005,Catering Provisions,3103,27/09/2019,26/09/2019,ICELAND,GLOUCESTER,GBR,GL1 1SA,REDACTED,556*********1155,5411,"GROCERY STORES, SUPERMARKETS",12.1,Pound Sterling (826),1,12.1,Debit,2.53778E+22,02/10/2019,GLOUCESTER CITY COUNCIL
Gloucester City Council,23UE,Blackfriars ,GH010,Catering Provisions,3103,27/09/2019,26/09/2019,B&M RETAIL LTD,HS GLOUCESTER,,GL12DH,REDACTED,556*********1155,5310,DISCOUNT STORES,7.63,Pound Sterling (826),1,7.63,Debit,8.54815E+22,02/10/2019,GLOUCESTER CITY COUNCIL
Gloucester City Council,23UE,Blackfriars ,GH010,Catering Provisions,3103,30/09/2019,27/09/2019,ALDI 96 775,GLOUCESTER,,GL1 5BJ,REDACTED,556*********1155,5411,"GROCERY STORES, SUPERMARKETS",14.8,Pound Sterling (826),1,14.8,Debit,8.54815E+22,02/10/2019,GLOUCESTER CITY COUNCIL
Gloucester City Council,23UE,Guildhall Events,GH002,Advertising & Publicity,3404,03/09/2019,02/09/2019,WWW.INSTANTPRINT.C,01709 382202,,S63 5DR,REDACTED,556*********8997,7338,QUICK-COPY AND REPRODUCTION SERVICES,46.99,Pound Sterling (826),1,46.99,Debit,8.54815E+22,02/10/2019,GLOUCESTER CITY COUNCIL
Gloucester City Council,23UE,Guildhall Events,GH002,Equipment and Furniture,3001,04/09/2019,02/09/2019,TICKETWEB T4,0333 321 9990,,N1 9HF,REDACTED,556*********8997,7922,"THEATRICAL PRODUCERS (EXCEPT MOTION PICTURES), TICKET AGENCIES",103,Pound Sterling (826),1,103,Debit,8.54815E+22,02/10/2019,GLOUCESTER CITY COUNCIL
Gloucester City Council,23UE,Museum of Gloucester,MU002,General Supplies/Materials,3025,09/09/2019,06/09/2019,AMZNMKTPLACE AMAZON.CO,AMAZON.CO.UK,GBR,EC2A 2FA,REDACTED,556*********8997,5999,MISCELLANEOUS AND RETAIL STORES,8.99,Pound Sterling (826),1,8.99,Debit,8.53892E+22,02/10/2019,GLOUCESTER CITY COUNCIL
Gloucester City Council,23UE,Blackfriars Weddings,GH011,Advertising & Publicity,3404,10/09/2019,09/09/2019,WWW.INSTANTPRINT.C,01709 382202,,S63 5DR,REDACTED,556*********8997,7338,QUICK-COPY AND REPRODUCTION SERVICES,21.99,Pound Sterling (826),1,21.99,Debit,8.54815E+22,02/10/2019,GLOUCESTER CITY COUNCIL
Gloucester City Council,23UE,Events,GH008,Equipment and Furniture,3001,11/09/2019,10/09/2019,STAGEDEPOT.CO.UK,0117 3250336,,BS4 5QR,REDACTED,556*********8997,5251,HARDWARE STORES,67.2,Pound Sterling (826),1,67.2,Debit,8.54815E+22,02/10/2019,GLOUCESTER CITY COUNCIL
Gloucester City Council,23UE,Blackfriars Weddings,GH011,Advertising & Publicity,3404,12/09/2019,11/09/2019,WWW.SIGN-HOLDERS.CO.UK,SOUTHAMPTON,,SO32 2SA,REDACTED,556*********8997,5999,MISCELLANEOUS AND RETAIL STORES,22.26,Pound Sterling (826),1,22.26,Debit,5.5542E+22,02/10/2019,GLOUCESTER CITY COUNCIL
Gloucester City Council,23UE,Museum of Gloucester,MU002,General Supplies/Materials,3025,16/09/2019,13/09/2019,AMZNMktplace,amazon.co.uk,GBR,EC2A 2FA,REDACTED,556*********8997,5999,MISCELLANEOUS AND RETAIL STORES,8.99,Pound Sterling (826),1,8.99,Debit,5.52047E+22,02/10/2019,GLOUCESTER CITY COUNCIL
Gloucester City Council,23UE,Museum of Gloucester,MU002,Exhibition Costs,3021,18/09/2019,17/09/2019,Amazon.co.uk*MA5RH0S64,AMAZON.CO.UK,LUX,L2338,REDACTED,556*********8997,5969,ALL OTHER DIRECT MARKETERS,82.94,Pound Sterling (826),1,82.94,Debit,5.2692E+22,02/10/2019,GLOUCESTER CITY COUNCIL
Gloucester City Council,23UE,Guildhall Events,GH002,Advertising & Publicity,3404,19/09/2019,18/09/2019,MAILCHIMP *MONTHLY,MAILCHIMP.COM,GA,30308,REDACTED,556*********8997,5968,CONTINUITY/SUBSCRIPTION MERCHANTS,24.4,Pound Sterling (826),1,24.4,Debit,5.54254E+22,02/10/2019,GLOUCESTER CITY COUNCIL
Gloucester City Council,23UE,Guildhall Events,GH002,Advertising & Publicity,3404,19/09/2019,18/09/2019,FACEBK *ZR2J7NN9X2,fb.me/ads,IRL,UNKNOWN,REDACTED,556*********8997,7311,ADVERTISING SERVICES,62.76,Pound Sterling (826),1,62.76,Debit,5.52047E+22,02/10/2019,GLOUCESTER CITY COUNCIL
Gloucester City Council,23UE,Museum of Gloucester,MU002,Exhibition Costs,3021,20/09/2019,19/09/2019,AMZNMKTPLACE AMAZON.CO,AMAZON.CO.UK,GBR,EC2A 2FA,REDACTED,556*********8997,5999,MISCELLANEOUS AND RETAIL STORES,51.75,Pound Sterling (826),1,51.75,Debit,8.53892E+22,02/10/2019,GLOUCESTER CITY COUNCIL
Gloucester City Council,23UE,Museum of Gloucester,MU002,General Supplies/Materials,3025,20/09/2019,19/09/2019,AMZNMKTPLACE AMAZON.CO,AMAZON.CO.UK,GBR,EC2A 2FA,REDACTED,556*********8997,5999,MISCELLANEOUS AND RETAIL STORES,7.58,Pound Sterling (826),1,7.58,Debit,8.53892E+22,02/10/2019,GLOUCESTER CITY COUNCIL
Gloucester City Council,23UE,Guildhall Events,GH002,Advertising & Publicity,3404,23/09/2019,20/09/2019,WWW.INSTANTPRINT.C,01709 382202,,S63 5DR,REDACTED,556*********8997,7338,QUICK-COPY AND REPRODUCTION SERVICES,31.99,Pound Sterling (826),1,31.99,Debit,8.54815E+22,02/10/2019,GLOUCESTER CITY COUNCIL
Gloucester City Council,23UE,Gloucester Guildhall,GH001,External Training Course Fees,550,24/09/2019,23/09/2019,CPLTRAINING,1506506910,GBR,CH411FN,REDACTED,556*********8997,8220,"COLLEGES, UNIVERSITIES, PROFESSIONAL SCHOOLS AND JUNIOR COLLEGES",504,Pound Sterling (826),1,504,Debit,8.51301E+22,02/10/2019,GLOUCESTER CITY COUNCIL
Gloucester City Council,23UE,Guildhall Cinema,GH003,Equipment and Furniture,3001,24/09/2019,24/09/2019,Amazon.co.uk*MA4LG6IP4,AMAZON.CO.UK,LUX,L2338,REDACTED,556*********8997,5969,ALL OTHER DIRECT MARKETERS,47.48,Pound Sterling (826),1,47.48,Debit,5.2692E+22,02/10/2019,GLOUCESTER CITY COUNCIL
Gloucester City Council,23UE,Guildhall Events,GH002,Partnership & Shared Working Agreements,3902,25/09/2019,24/09/2019,123RF Ltd,Amsterdam,NLD,1013BH,REDACTED,556*********8997,7333,"COMMERCIAL PHOTOGRAPHY, ART, AND GRAPHICS",12,Pound Sterling (826),1,12,Debit,1.52657E+22,02/10/2019,GLOUCESTER CITY COUNCIL
Gloucester City Council,23UE,Museum of Gloucester,MU002,Exhibition Costs,3021,26/09/2019,25/09/2019,AMZNMktplace,amazon.co.uk,GBR,EC2A 2FA,REDACTED,556*********8997,5999,MISCELLANEOUS AND RETAIL STORES,24.99,Pound Sterling (826),1,24.99,Debit,5.52047E+22,02/10/2019,GLOUCESTER CITY COUNCIL
Gloucester City Council,23UE,Guildhall Cinema,GH003,Equipment and Furniture,3001,26/09/2019,25/09/2019,The Aerial Man (Dan Gr,BRISTOL,GBR,BS15 3DQ,REDACTED,556*********8997,4899,"CABLE,SATELLITE & OTHER TV/RADIO SERVICE",58.8,Pound Sterling (826),1,58.8,Debit,5.37135E+21,02/10/2019,GLOUCESTER CITY COUNCIL
Gloucester City Council,23UE,Gloucester Guildhall,GH001,Equipment and Furniture,3001,30/09/2019,28/09/2019,STAGEDEPOT.CO.UK,0117 3250336,,BS4 5QR,REDACTED,556*********8997,5251,HARDWARE STORES,105.6,Pound Sterling (826),1,105.6,Debit,8.54815E+22,02/10/2019,GLOUCESTER CITY COUNCIL
Gloucester City Council,23UE,Visitor Experience,VE001,Operative Clothing Allowances,502,01/10/2019,30/09/2019,WWW.CLOTHES2ORDER.COM,MANCHESTER M1,GBR,M17 1EH,REDACTED,556*********8997,5137,"MEN'S,WOMEN'S AND CHILDREN'S UNIFORMS AN",376.32,Pound Sterling (826),1,376.32,Debit,1.52763E+22,02/10/2019,GLOUCESTER CITY COUNCIL
Gloucester City Council,23UE,Museum of Gloucester,MU002,Exhibition Costs,3021,01/10/2019,30/09/2019,Amazon.co.uk*MO8CM64R4,AMAZON.CO.UK,LUX,L2338,REDACTED,556*********8997,5969,ALL OTHER DIRECT MARKETERS,18.33,Pound Sterling (826),1,18.33,Debit,5.2692E+22,02/10/2019,GLOUCESTER CITY COUNCIL
Gloucester City Council,23UE,Museum of Gloucester,MU002,Advertising & Publicity,3404,02/10/2019,02/10/2019,FACEBK U977KNWKC2,fb.me/ads,IRL,2,REDACTED,556*********8997,7311,ADVERTISING SERVICES,2.41,Pound Sterling (826),1,2.41,Debit,1.52657E+22,02/10/2019,GLOUCESTER CITY COUNCIL
Gloucester City Council,23UE,Docks Complex - Services,AM006,Building Repairs and Maintenance,1001,06/09/2019,05/09/2019,B & Q 1179,GLOUCESTER,,GL12SG,REDACTED,556*********4301,5200,HOME SUPPLY WAREHOUSE STORES,15.4,Pound Sterling (826),1,15.4,Debit,8.54815E+22,02/10/2019,GLOUCESTER CITY COUNCIL
Gloucester City Council,23UE,Docks Complex - Services,AM006,Building Repairs and Maintenance,1001,09/09/2019,06/09/2019,B & Q 1179,GLOUCESTER,,GL12SG,REDACTED,556*********4301,5200,HOME SUPPLY WAREHOUSE STORES,29.88,Pound Sterling (826),1,29.88,Debit,8.54815E+22,02/10/2019,GLOUCESTER CITY COUNCIL
Gloucester City Council,23UE,Docks Complex - Services,AM006,Hospitality & Refreshments,3104,20/09/2019,19/09/2019,TESCO STORES 6654,GLOUCESTER,GBR,GL3 1AB,REDACTED,556*********4301,5411,"GROCERY STORES, SUPERMARKETS",27.15,Pound Sterling (826),1,27.15,Debit,1.53778E+22,02/10/2019,GLOUCESTER CITY COUNCIL
Gloucester City Council,23UE,Docks Complex - Services,AM006,General Supplies/Materials,3025,25/09/2019,24/09/2019,GLOUCESTER FRAMING AND,GLOUCESTER,,GL1 2DY,REDACTED,556*********4301,5970,"ARTIST SUPPLY STORES, CRAFT SHOPS",159,Pound Sterling (826),1,159,Debit,8.54815E+22,02/10/2019,GLOUCESTER CITY COUNCIL
Gloucester City Council,23UE,Docks Complex - Services,AM006,Hospitality & Refreshments,3104,30/09/2019,27/09/2019,SAINSBURYS 2221,GLOUCESTER,GBR,GL2 5SA,REDACTED,556*********4301,5411,"GROCERY STORES, SUPERMARKETS",20.5,Pound Sterling (826),1,20.5,Debit,2.54252E+22,02/10/2019,GLOUCESTER CITY COUNCIL
Gloucester City Council,23UE,Docks Complex - Services,AM006,Hospitality & Refreshments,3104,02/10/2019,01/10/2019,CO-OPERATIVE FOOD,GLOUCESTER,,GL32AB,REDACTED,556*********4301,5411,"GROCERY STORES, SUPERMARKETS",24.78,Pound Sterling (826),1,24.78,Debit,8.54815E+22,02/10/2019,GLOUCESTER CITY COUNCIL
Gloucester City Council,23UE,Council Streetcare Team,NE002,Public Transport - Staff,2402,05/09/2019,04/09/2019,Trainline,London,GBR,1445,REDACTED,556*********4234,4112,PASSENGER RAILWAYS,127,Pound Sterling (826),1,127,Debit,8.51301E+22,02/10/2019,GLOUCESTER CITY COUNCIL
Gloucester City Council,23UE,Development Management,PL003,Public Transport - Staff,2402,05/09/2019,04/09/2019,Trainline,London,GBR,1445,REDACTED,556*********4234,4112,PASSENGER RAILWAYS,96,Pound Sterling (826),1,96,Debit,8.51301E+22,02/10/2019,GLOUCESTER CITY COUNCIL
Gloucester City Council,23UE,Community Building,VS003,Public Transport - Staff,2402,18/09/2019,17/09/2019,Trainline,London,GBR,1445,REDACTED,556*********4234,4112,PASSENGER RAILWAYS,186.2,Pound Sterling (826),1,186.2,Debit,8.51301E+22,02/10/2019,GLOUCESTER CITY COUNCIL
Gloucester City Council,23UE,Housing Services,HS001,Public Transport - Staff,2402,18/09/2019,17/09/2019,Trainline,London,GBR,1445,REDACTED,556*********4234,4112,PASSENGER RAILWAYS,55.5,Pound Sterling (826),1,55.5,Debit,8.51301E+22,02/10/2019,GLOUCESTER CITY COUNCIL
Gloucester City Council,23UE,Community Building,VS003,Public Transport - Staff,2402,18/09/2019,17/09/2019,Trainline,London,GBR,1445,REDACTED,556*********4234,4112,PASSENGER RAILWAYS,186.2,Pound Sterling (826),1,186.2,Debit,8.51301E+22,02/10/2019,GLOUCESTER CITY COUNCIL
Gloucester City Council,23UE,Council Streetcare Team,NE002,Public Transport - Staff,2402,19/09/2019,18/09/2019,Trainline,London,GBR,1445,REDACTED,556*********4234,4112,PASSENGER RAILWAYS,44.8,Pound Sterling (826),1,44.8,Debit,8.51301E+22,02/10/2019,GLOUCESTER CITY COUNCIL
Gloucester City Council,23UE,Council Streetcare Team,NE002,Public Transport - Staff,2402,19/09/2019,18/09/2019,Trainline,London,GBR,1445,REDACTED,556*********4234,4112,PASSENGER RAILWAYS,64.55,Pound Sterling (826),1,64.55,Debit,8.51301E+22,02/10/2019,GLOUCESTER CITY COUNCIL
Gloucester City Council,23UE,Business Support,BI004,Stationery,3201,20/09/2019,19/09/2019,A2B OFFICE SUPPLIES,LANCASHIRE,LND,BL9 8NT,REDACTED,556*********4234,5399,MISCELLANEOUS GENERAL MERCHANDISE STORES,23.15,Pound Sterling (826),1,23.15,Debit,8.53839E+22,02/10/2019,GLOUCESTER CITY COUNCIL
Gloucester City Council,23UE,Development Management,PL003,Public Transport - Staff,2402,24/09/2019,23/09/2019,Trainline,London,GBR,1445,REDACTED,556*********4234,4112,PASSENGER RAILWAYS,96,Pound Sterling (826),1,96,Debit,8.51301E+22,02/10/2019,GLOUCESTER CITY COUNCIL
Gloucester City Council,23UE,Council Streetcare Team,NE002,Public Transport - Staff,2402,26/09/2019,25/09/2019,Trainline,London,GBR,1445,REDACTED,556*********4234,4112,PASSENGER RAILWAYS,131.4,Pound Sterling (826),1,131.4,Debit,8.51301E+22,02/10/2019,GLOUCESTER CITY COUNCIL
Gloucester City Council,23UE,Community Building,VS003,Public Transport - Staff,2402,27/09/2019,26/09/2019,Trainline,London,GBR,1445,REDACTED,556*********4234,4112,PASSENGER RAILWAYS,186.2,Pound Sterling (826),1,186.2,Debit,8.51301E+22,02/10/2019,GLOUCESTER CITY COUNCIL
Gloucester City Council,23UE,Council Streetcare Team,NE002,Public Transport - Staff,2402,01/10/2019,30/09/2019,Trainline,London,GBR,1445,REDACTED,556*********4234,4112,PASSENGER RAILWAYS,7.55,Pound Sterling (826),1,7.55,Debit,8.51301E+22,02/10/2019,GLOUCESTER CITY COUNCIL
Gloucester City Council,23UE,Asset Management,AM035,General Supplies/Materials,3025,01/10/2019,30/09/2019,SAFE.CO.UK,01772 730320,,PR22NS,REDACTED,556*********4234,5943,"STATIONERY, OFFICE AND SCHOOL SUPPLY STO",99.95,Pound Sterling (826),1,99.95,Debit,8.54815E+22,02/10/2019,GLOUCESTER CITY COUNCIL
Gloucester City Council,23UE,Elections,DS004,Public Transport - Staff,2402,10/09/2019,09/09/2019,WWW.3.HILTON.COM,INTERNET,GBR,B40 1PP,REDACTED,556*********3029,7011,"LODGING, HOTELS, MOTELS, RESORTS",9,Pound Sterling (826),1,9,Debit,5.27247E+21,02/10/2019,GLOUCESTER CITY COUNCIL
Gloucester City Council,23UE,Members Support,DS002,Public Transport - Staff,2402,11/09/2019,10/09/2019,Trainline,London,GBR,1445,REDACTED,556*********3029,4112,PASSENGER RAILWAYS,93.2,Pound Sterling (826),1,93.2,Debit,8.51301E+22,02/10/2019,GLOUCESTER CITY COUNCIL
Gloucester City Council,23UE,Elections,DS004,Public Transport - Staff,2402,18/09/2019,17/09/2019,MID DEVON DISRICT COUN,TIVERTON,GBR,EX16 6PP,REDACTED,556*********3029,7523,AUTOMOBILE PARKING LOTS AND GARAGES,2,Pound Sterling (826),1,2,Debit,1.52763E+22,02/10/2019,GLOUCESTER CITY COUNCIL
Gloucester City Council,23UE,Housing Services,HS001,B&B Payments,1303,03/09/2019,02/09/2019,TRAVELODGE GB0000,THAME,,OX9 3AT,REDACTED,556*********6959,3615,TRAVELODGE,133,Pound Sterling (826),1,133,Debit,5.55044E+22,02/10/2019,GLOUCESTER CITY COUNCIL
Gloucester City Council,23UE,Housing Services,HS001,B&B Payments,1303,03/09/2019,02/09/2019,TRAVELODGE GB0000,THAME,,OX9 3AT,REDACTED,556*********6959,3615,TRAVELODGE,64,Pound Sterling (826),1,64,Debit,5.55044E+22,02/10/2019,GLOUCESTER CITY COUNCIL
Gloucester City Council,23UE,Housing Services,HS001,B&B Payments,1303,04/09/2019,03/09/2019,TRAVELODGE GB0000,THAME,,OX9 3AT,REDACTED,556*********6959,3615,TRAVELODGE,152,Pound Sterling (826),1,152,Debit,5.55044E+22,02/10/2019,GLOUCESTER CITY COUNCIL
Gloucester City Council,23UE,Housing Services,HS001,B&B Payments,1303,04/09/2019,03/09/2019,TRAVELODGE GB0000,THAME,,OX9 3AT,REDACTED,556*********6959,3615,TRAVELODGE,152,Pound Sterling (826),1,152,Debit,5.55044E+22,02/10/2019,GLOUCESTER CITY COUNCIL
Gloucester City Council,23UE,Housing Services,HS001,B&B Payments,1303,04/09/2019,03/09/2019,TRAVELODGE GB0000,THAME,,OX9 3AT,REDACTED,556*********6959,3615,TRAVELODGE,782,Pound Sterling (826),1,782,Debit,5.55044E+22,02/10/2019,GLOUCESTER CITY COUNCIL
Gloucester City Council,23UE,Housing Services,HS001,B&B Payments,1303,04/09/2019,03/09/2019,TRAVELODGE GB0000,THAME,,OX9 3AT,REDACTED,556*********6959,3615,TRAVELODGE,733,Pound Sterling (826),1,733,Debit,5.55044E+22,02/10/2019,GLOUCESTER CITY COUNCIL
Gloucester City Council,23UE,Housing Services,HS001,B&B Payments,1303,06/09/2019,05/09/2019,TRAVELODGE GB0000,THAME,,OX9 3AT,REDACTED,556*********6959,3615,TRAVELODGE,44,Pound Sterling (826),1,44,Debit,5.55044E+22,02/10/2019,GLOUCESTER CITY COUNCIL
Gloucester City Council,23UE,Housing Services,HS001,B&B Payments,1303,06/09/2019,05/09/2019,TRAVELODGE GB0000,THAME,,OX9 3AT,REDACTED,556*********6959,3615,TRAVELODGE,44,Pound Sterling (826),1,44,Debit,5.55044E+22,02/10/2019,GLOUCESTER CITY COUNCIL
Gloucester City Council,23UE,Housing Services,HS001,B&B Payments,1303,06/09/2019,05/09/2019,TRAVELODGE GB0000,THAME,,OX9 3AT,REDACTED,556*********6959,3615,TRAVELODGE,255,Pound Sterling (826),1,255,Debit,5.55044E+22,02/10/2019,GLOUCESTER CITY COUNCIL
Gloucester City Council,23UE,Housing Services,HS001,Professional Advice/Consultants Fees,3952,06/09/2019,05/09/2019,CHARTERED INSTITUTE OF,LONDON,GBR,SE1 8DJ,REDACTED,556*********6959,8398,CHARITABLE AND SOCIAL SERVICE ORGANIZATIONS,1770,Pound Sterling (826),1,1770,Debit,5.51842E+22,02/10/2019,GLOUCESTER CITY COUNCIL
Gloucester City Council,23UE,Housing Services,HS001,B&B Payments,1303,09/09/2019,06/09/2019,TRAVELODGE GB0000,THAME,,OX9 3AT,REDACTED,556*********6959,3615,TRAVELODGE,137,Pound Sterling (826),1,137,Debit,5.55044E+22,02/10/2019,GLOUCESTER CITY COUNCIL
Gloucester City Council,23UE,Housing Services,HS001,B&B Payments,1303,09/09/2019,06/09/2019,TRAVELODGE GB0000,THAME,,OX9 3AT,REDACTED,556*********6959,3615,TRAVELODGE,49,Pound Sterling (826),1,49,Debit,5.55044E+22,02/10/2019,GLOUCESTER CITY COUNCIL
Gloucester City Council,23UE,Housing Services,HS001,B&B Payments,1303,09/09/2019,06/09/2019,TRAVELODGE GB0000,THAME,,OX9 3AT,REDACTED,556*********6959,3615,TRAVELODGE,339,Pound Sterling (826),1,339,Debit,5.55044E+22,02/10/2019,GLOUCESTER CITY COUNCIL
Gloucester City Council,23UE,Housing Services,HS001,B&B Payments,1303,10/09/2019,09/09/2019,TRAVELODGE GB0000,THAME,,OX9 3AT,REDACTED,556*********6959,3615,TRAVELODGE,49,Pound Sterling (826),1,49,Debit,5.55044E+22,02/10/2019,GLOUCESTER CITY COUNCIL
Gloucester City Council,23UE,Housing Services,HS001,B&B Payments,1303,10/09/2019,09/09/2019,TRAVELODGE GB0000,THAME,,OX9 3AT,REDACTED,556*********6959,3615,TRAVELODGE,49,Pound Sterling (826),1,49,Debit,5.55044E+22,02/10/2019,GLOUCESTER CITY COUNCIL
Gloucester City Council,23UE,Housing Services,HS001,B&B Payments,1303,10/09/2019,09/09/2019,TRAVELODGE GB0000,THAME,,OX9 3AT,REDACTED,556*********6959,3615,TRAVELODGE,103,Pound Sterling (826),1,103,Debit,5.55044E+22,02/10/2019,GLOUCESTER CITY COUNCIL
Gloucester City Council,23UE,Housing Services,HS001,B&B Payments,1303,10/09/2019,09/09/2019,TRAVELODGE GB0000,THAME,,OX9 3AT,REDACTED,556*********6959,3615,TRAVELODGE,49,Pound Sterling (826),1,49,Debit,5.55044E+22,02/10/2019,GLOUCESTER CITY COUNCIL
Gloucester City Council,23UE,Housing Services,HS001,B&B Payments,1303,11/09/2019,10/09/2019,TRAVELODGE GB0000,THAME,,OX9 3AT,REDACTED,556*********6959,3615,TRAVELODGE,429,Pound Sterling (826),1,429,Debit,5.55044E+22,02/10/2019,GLOUCESTER CITY COUNCIL
Gloucester City Council,23UE,Housing Services,HS001,B&B Payments,1303,11/09/2019,10/09/2019,TRAVELODGE GB0000,THAME,,OX9 3AT,REDACTED,556*********6959,3615,TRAVELODGE,99,Pound Sterling (826),1,99,Debit,5.55044E+22,02/10/2019,GLOUCESTER CITY COUNCIL
Gloucester City Council,23UE,Housing Services,HS001,Professional Advice/Consultants Fees,3952,11/09/2019,10/09/2019,CHARTERED INSTITUTE OF,LONDON,GBR,SE1 8DJ,REDACTED,556*********6959,8398,CHARITABLE AND SOCIAL SERVICE ORGANIZATIONS,-590,Pound Sterling (826),1,-590,Credit,5.51842E+22,02/10/2019,GLOUCESTER CITY COUNCIL
Gloucester City Council,23UE,Housing Services,HS001,B&B Payments,1303,12/09/2019,11/09/2019,TRAVELODGE GB0000,THAME,,OX9 3AT,REDACTED,556*********6959,3615,TRAVELODGE,123,Pound Sterling (826),1,123,Debit,5.55044E+22,02/10/2019,GLOUCESTER CITY COUNCIL
Gloucester City Council,23UE,Housing Services,HS001,B&B Payments,1303,13/09/2019,12/09/2019,TRAVELODGE GB0000,THAME,,OX9 3AT,REDACTED,556*********6959,3615,TRAVELODGE,399,Pound Sterling (826),1,399,Debit,5.55044E+22,02/10/2019,GLOUCESTER CITY COUNCIL
Gloucester City Council,23UE,Housing Services,HS001,B&B Payments,1303,17/09/2019,16/09/2019,HOLIDAY INN EXPRESS,CHELTENHAM,GBR,GL50 4AP,REDACTED,556*********6959,7011,"LODGING, HOTELS, MOTELS, RESORTS",483,Pound Sterling (826),1,483,Debit,5.27248E+21,02/10/2019,GLOUCESTER CITY COUNCIL
Gloucester City Council,23UE,Housing Services,HS001,B&B Payments,1303,17/09/2019,16/09/2019,TRAVELODGE GB0000,THAME,,OX9 3AT,REDACTED,556*********6959,3615,TRAVELODGE,54,Pound Sterling (826),1,54,Debit,5.55044E+22,02/10/2019,GLOUCESTER CITY COUNCIL
Gloucester City Council,23UE,Housing Services,HS001,B&B Payments,1303,18/09/2019,16/09/2019,PREMIER INN 44537895,GLOUCESTER,,GL1 5SF,REDACTED,556*********6959,3811,PREMIER INN,546.5,Pound Sterling (826),1,546.5,Debit,5.5542E+22,02/10/2019,GLOUCESTER CITY COUNCIL
Gloucester City Council,23UE,Housing Services,HS001,B&B Payments,1303,18/09/2019,16/09/2019,PREMIER INN 44537895,GLOUCESTER,,GL1 5SF,REDACTED,556*********6959,3811,PREMIER INN,83.5,Pound Sterling (826),1,83.5,Debit,5.5542E+22,02/10/2019,GLOUCESTER CITY COUNCIL
Gloucester City Council,23UE,Housing Services,HS001,B&B Payments,1303,18/09/2019,17/09/2019,TRAVELODGE GB0000,THAME,,OX9 3AT,REDACTED,556*********6959,3615,TRAVELODGE,384,Pound Sterling (826),1,384,Debit,5.55044E+22,02/10/2019,GLOUCESTER CITY COUNCIL
Gloucester City Council,23UE,Housing Services,HS001,B&B Payments,1303,18/09/2019,17/09/2019,TRAVELODGE GB0000,THAME,,OX9 3AT,REDACTED,556*********6959,3615,TRAVELODGE,109,Pound Sterling (826),1,109,Debit,5.55044E+22,02/10/2019,GLOUCESTER CITY COUNCIL
Gloucester City Council,23UE,Housing Services,HS001,B&B Payments,1303,18/09/2019,17/09/2019,HIE GLOUCESTER SOUTH,GLOUCESTER,GBR,GL2 2AB,REDACTED,556*********6959,3501,HOLIDAY INNS,655.93,Pound Sterling (826),1,655.93,Debit,5.51842E+22,02/10/2019,GLOUCESTER CITY COUNCIL
Gloucester City Council,23UE,Housing Services,HS001,B&B Payments,1303,19/09/2019,18/09/2019,TRAVELODGE GB0000,THAME,,OX9 3AT,REDACTED,556*********6959,3615,TRAVELODGE,373,Pound Sterling (826),1,373,Debit,5.55044E+22,02/10/2019,GLOUCESTER CITY COUNCIL
Gloucester City Council,23UE,Housing Services,HS001,B&B Payments,1303,19/09/2019,18/09/2019,TRAVELODGE GB0000,THAME,,OX9 3AT,REDACTED,556*********6959,3615,TRAVELODGE,91,Pound Sterling (826),1,91,Debit,5.55044E+22,02/10/2019,GLOUCESTER CITY COUNCIL
Gloucester City Council,23UE,Housing Services,HS001,B&B Payments,1303,19/09/2019,18/09/2019,TRAVELODGE GB0000,THAME,,OX9 3AT,REDACTED,556*********6959,3615,TRAVELODGE,-276,Pound Sterling (826),1,-276,Credit,5.55044E+22,02/10/2019,GLOUCESTER CITY COUNCIL
Gloucester City Council,23UE,Housing Services,HS001,B&B Payments,1303,20/09/2019,19/09/2019,TRAVELODGE GB0000,THAME,,OX9 3AT,REDACTED,556*********6959,3615,TRAVELODGE,260,Pound Sterling (826),1,260,Debit,5.55044E+22,02/10/2019,GLOUCESTER CITY COUNCIL
Gloucester City Council,23UE,Housing Services,HS001,Public Transport - Staff,2402,23/09/2019,20/09/2019,Trainline.com,London,GBR,EC1N 2TD,REDACTED,556*********6959,4112,PASSENGER RAILWAYS,86.6,Pound Sterling (826),1,86.6,Debit,1.52657E+22,02/10/2019,GLOUCESTER CITY COUNCIL
Gloucester City Council,23UE,Housing Services,HS001,B&B Payments,1303,23/09/2019,20/09/2019,TRAVELODGE GB0000,THAME,,OX9 3AT,REDACTED,556*********6959,3615,TRAVELODGE,167,Pound Sterling (826),1,167,Debit,5.55044E+22,02/10/2019,GLOUCESTER CITY COUNCIL
Gloucester City Council,23UE,Housing Services,HS001,B&B Payments,1303,24/09/2019,23/09/2019,TRAVELODGE GB0000,THAME,,OX9 3AT,REDACTED,556*********6959,3615,TRAVELODGE,413,Pound Sterling (826),1,413,Debit,5.55044E+22,02/10/2019,GLOUCESTER CITY COUNCIL
Gloucester City Council,23UE,Housing Services,HS001,B&B Payments,1303,24/09/2019,23/09/2019,TRAVELODGE GB0000,THAME,,OX9 3AT,REDACTED,556*********6959,3615,TRAVELODGE,462,Pound Sterling (826),1,462,Debit,5.55044E+22,02/10/2019,GLOUCESTER CITY COUNCIL
Gloucester City Council,23UE,Housing Services,HS001,B&B Payments,1303,25/09/2019,23/09/2019,PREMIER INN 44537895,GLOUCESTER,,GL1 5SF,REDACTED,556*********6959,3811,PREMIER INN,90.5,Pound Sterling (826),1,90.5,Debit,5.5542E+22,02/10/2019,GLOUCESTER CITY COUNCIL
Gloucester City Council,23UE,Housing Services,HS001,B&B Payments,1303,25/09/2019,24/09/2019,TRAVELODGE GB0000,THAME,,OX9 3AT,REDACTED,556*********6959,3615,TRAVELODGE,124.98,Pound Sterling (826),1,124.98,Debit,5.55044E+22,02/10/2019,GLOUCESTER CITY COUNCIL
Gloucester City Council,23UE,Housing Services,HS001,B&B Payments,1303,25/09/2019,24/09/2019,HIE GLOUCESTER SOUTH,GLOUCESTER,GBR,GL2 2AB,REDACTED,556*********6959,3501,HOLIDAY INNS,650.93,Pound Sterling (826),1,650.93,Debit,5.51842E+22,02/10/2019,GLOUCESTER CITY COUNCIL
Gloucester City Council,23UE,Housing Services,HS001,B&B Payments,1303,26/09/2019,25/09/2019,TRAVELODGE GB0000,THAME,,OX9 3AT,REDACTED,556*********6959,3615,TRAVELODGE,240.95,Pound Sterling (826),1,240.95,Debit,5.55044E+22,02/10/2019,GLOUCESTER CITY COUNCIL
Gloucester City Council,23UE,Housing Services,HS001,B&B Payments,1303,26/09/2019,25/09/2019,TRAVELODGE GB0000,THAME,,OX9 3AT,REDACTED,556*********6959,3615,TRAVELODGE,272.94,Pound Sterling (826),1,272.94,Debit,5.55044E+22,02/10/2019,GLOUCESTER CITY COUNCIL
Gloucester City Council,23UE,Housing Services,HS001,B&B Payments,1303,26/09/2019,25/09/2019,TRAVELODGE GB0000,THAME,,OX9 3AT,REDACTED,556*********6959,3615,TRAVELODGE,272.94,Pound Sterling (826),1,272.94,Debit,5.55044E+22,02/10/2019,GLOUCESTER CITY COUNCIL
Gloucester City Council,23UE,Housing Services,HS001,B&B Payments,1303,26/09/2019,25/09/2019,TRAVELODGE GB0000,THAME,,OX9 3AT,REDACTED,556*********6959,3615,TRAVELODGE,272.94,Pound Sterling (826),1,272.94,Debit,5.55044E+22,02/10/2019,GLOUCESTER CITY COUNCIL
Gloucester City Council,23UE,Housing Services,HS001,B&B Payments,1303,26/09/2019,25/09/2019,TRAVELODGE GB0000,THAME,,OX9 3AT,REDACTED,556*********6959,3615,TRAVELODGE,231.95,Pound Sterling (826),1,231.95,Debit,5.55044E+22,02/10/2019,GLOUCESTER CITY COUNCIL
Gloucester City Council,23UE,Housing Services,HS001,B&B Payments,1303,26/09/2019,25/09/2019,TRAVELODGE GB0000,THAME,,OX9 3AT,REDACTED,556*********6959,3615,TRAVELODGE,-147,Pound Sterling (826),1,-147,Credit,5.55044E+22,02/10/2019,GLOUCESTER CITY COUNCIL
Gloucester City Council,23UE,Housing Services,HS001,B&B Payments,1303,27/09/2019,25/09/2019,PREMIER INN44521220,GLOUCESTER,,GL4 3HR,REDACTED,556*********6959,3811,PREMIER INN,313,Pound Sterling (826),1,313,Debit,5.5542E+22,02/10/2019,GLOUCESTER CITY COUNCIL
Gloucester City Council,23UE,Housing Services,HS001,B&B Payments,1303,30/09/2019,27/09/2019,TRAVELODGE GB0000,THAME,,OX9 3AT,REDACTED,556*********6959,3615,TRAVELODGE,144.97,Pound Sterling (826),1,144.97,Debit,5.55044E+22,02/10/2019,GLOUCESTER CITY COUNCIL
Gloucester City Council,23UE,Housing Services,HS001,B&B Payments,1303,30/09/2019,27/09/2019,TRAVELODGE GB0000,THAME,,OX9 3AT,REDACTED,556*********6959,3615,TRAVELODGE,144.97,Pound Sterling (826),1,144.97,Debit,5.55044E+22,02/10/2019,GLOUCESTER CITY COUNCIL
Gloucester City Council,23UE,Housing Services,HS001,B&B Payments,1303,30/09/2019,26/09/2019,PREMIER INN44521220,GLOUCESTER,,GL4 3HR,REDACTED,556*********6959,3811,PREMIER INN,-238,Pound Sterling (826),1,-238,Credit,5.5542E+22,02/10/2019,GLOUCESTER CITY COUNCIL
Gloucester City Council,23UE,Housing Services,HS001,B&B Payments,1303,01/10/2019,30/09/2019,TRAVELODGE GB0000,THAME,,OX9 3AT,REDACTED,556*********6959,3615,TRAVELODGE,377.93,Pound Sterling (826),1,377.93,Debit,5.55044E+22,02/10/2019,GLOUCESTER CITY COUNCIL
Gloucester City Council,23UE,Housing Services,HS001,B&B Payments,1303,01/10/2019,30/09/2019,TRAVELODGE GB0000,THAME,,OX9 3AT,REDACTED,556*********6959,3615,TRAVELODGE,149.98,Pound Sterling (826),1,149.98,Debit,5.55044E+22,02/10/2019,GLOUCESTER CITY COUNCIL
Gloucester City Council,23UE,Housing Services,HS001,B&B Payments,1303,01/10/2019,30/09/2019,TRAVELODGE GB0000,THAME,,OX9 3AT,REDACTED,556*********6959,3615,TRAVELODGE,152.98,Pound Sterling (826),1,152.98,Debit,5.55044E+22,02/10/2019,GLOUCESTER CITY COUNCIL
Gloucester City Council,23UE,Housing Services,HS001,B&B Payments,1303,01/10/2019,30/09/2019,TRAVELODGE GB0000,THAME,,OX9 3AT,REDACTED,556*********6959,3615,TRAVELODGE,60.99,Pound Sterling (826),1,60.99,Debit,5.55044E+22,02/10/2019,GLOUCESTER CITY COUNCIL
Gloucester City Council,23UE,Housing Services,HS001,B&B Payments,1303,02/10/2019,01/10/2019,TRAVELODGE GB0000,THAME,,OX9 3AT,REDACTED,556*********6959,3615,TRAVELODGE,156.98,Pound Sterling (826),1,156.98,Debit,5.55044E+22,02/10/2019,GLOUCESTER CITY COUNCIL
Gloucester City Council,23UE,Blackfriars ,GH010,Professional Advice/Consultants Fees,3952,10/09/2019,09/09/2019,SILVERBACK EVENTS LIMI,MANCHESTER,GBR,M12 5FQ,REDACTED,556*********8256,7399,BUSINESS SERVICES NOT ELSEWHERE CLASSIFIED,500,Pound Sterling (826),1,500,Debit,5.27247E+21,02/10/2019,GLOUCESTER CITY COUNCIL
Gloucester City Council,23UE,Blackfriars ,GH010,Professional Advice/Consultants Fees,3952,10/09/2019,09/09/2019,SILVERBACK EVENTS LIMI,MANCHESTER,GBR,M12 5FQ,REDACTED,556*********8256,7399,BUSINESS SERVICES NOT ELSEWHERE CLASSIFIED,500,Pound Sterling (826),1,500,Debit,5.27247E+21,02/10/2019,GLOUCESTER CITY COUNCIL
Gloucester City Council,23UE,Blackfriars ,GH010,Professional Advice/Consultants Fees,3952,10/09/2019,09/09/2019,SILVERBACK EVENTS LIMI,MANCHESTER,GBR,M12 5FQ,REDACTED,556*********8256,7399,BUSINESS SERVICES NOT ELSEWHERE CLASSIFIED,51.2,Pound Sterling (826),1,51.2,Debit,5.27247E+21,02/10/2019,GLOUCESTER CITY COUNCIL
Gloucester City Council,23UE,Guildhall Events,GH002,Advertising & Publicity,3404,16/09/2019,14/09/2019,WORDPRESS LA4XXV2MQ4,8772733049,CA,94110,REDACTED,556*********8256,7372,COMPUTER AND DATA PROCESSING SERVICES,51,Pound Sterling (826),1,51,Debit,5.54295E+22,02/10/2019,GLOUCESTER CITY COUNCIL
Gloucester City Council,23UE,Museum of Gloucester,MU002,General Supplies/Materials,3025,18/09/2019,17/09/2019,VIKING UK,LEICESTER,GBR,LE4 2BN,REDACTED,556*********8256,5111,"STATIONERY,OFFICE SUPPLIES,PRINTING AND WRITING PAPER",107.94,Pound Sterling (826),1,107.94,Debit,1.52763E+22,02/10/2019,GLOUCESTER CITY COUNCIL
Gloucester City Council,23UE,Museum of Gloucester,MU002,Exhibition Costs,3021,24/09/2019,23/09/2019,B & Q 1179,GLOUCESTER,,GL12SG,REDACTED,556*********8256,5200,HOME SUPPLY WAREHOUSE STORES,180.5,Pound Sterling (826),1,180.5,Debit,8.54815E+22,02/10/2019,GLOUCESTER CITY COUNCIL
Gloucester City Council,23UE,Museum of Gloucester,MU002,Exhibition Costs,3021,26/09/2019,25/09/2019,RECTELLA LTD,BICESTER,GBR,OX25 2NY,REDACTED,556*********8256,5714,"WINDOW COVERING, UPHOLSTERY AND DRAPERY STORES",113,Pound Sterling (826),1,113,Debit,5.27247E+21,02/10/2019,GLOUCESTER CITY COUNCIL
Gloucester City Council,23UE,Blackfriars Weddings,GH011,Advertising & Publicity,3404,30/09/2019,26/09/2019,PAYPAL *HITCHED LTD,35314369001,GBR,W67BT,REDACTED,556*********8256,7299,MISCELLANEOUS PERSONAL SERVICES,59.99,Pound Sterling (826),1,59.99,Debit,8.51301E+22,02/10/2019,GLOUCESTER CITY COUNCIL
Gloucester City Council,23UE,Guildhall Events,GH002,Advertising & Publicity,3404,01/10/2019,30/09/2019,FACEBK QQT74NEE72,fb.me/ads,IRL,2,REDACTED,556*********8256,7311,ADVERTISING SERVICES,129.82,Pound Sterling (826),1,129.82,Debit,1.52657E+22,02/10/2019,GLOUCESTER CITY COUNCIL
Gloucester City Council,23UE,Civica Admin Charges,BI002,Public Transport - Staff,2402,05/09/2019,04/09/2019,Trainline.com,London,GBR,EC1N 2TD,REDACTED,556*********3063,4112,PASSENGER RAILWAYS,75.6,Pound Sterling (826),1,75.6,Debit,1.52657E+22,02/10/2019,GLOUCESTER CITY COUNCIL
Gloucester City Council,23UE,Members Support,DS002,Members Travel Expenses,3609,12/09/2019,11/09/2019,Trainline,London,GBR,1445,REDACTED,556*********3063,4112,PASSENGER RAILWAYS,202.1,Pound Sterling (826),1,202.1,Debit,8.51301E+22,02/10/2019,GLOUCESTER CITY COUNCIL
Gloucester City Council,23UE,Business Transformation,BI006,Equipment and Furniture,3001,12/09/2019,11/09/2019,LIGO ELECTRONICS,GLASGOW G2 4H,GBR,G2 4HG,REDACTED,556*********3063,4812,TELECOMMUNICATION EQUIPMENT INCLUDING TELEPHONE SALES,35.97,Pound Sterling (826),1,35.97,Debit,1.5426E+22,02/10/2019,GLOUCESTER CITY COUNCIL
Gloucester City Council,23UE,Financial Services,FS004,Professional Advice/Consultants Fees,3952,16/09/2019,13/09/2019,Trainline.com,London,GBR,EC1N 2TD,REDACTED,556*********3063,4112,PASSENGER RAILWAYS,44.8,Pound Sterling (826),1,44.8,Debit,1.52657E+22,02/10/2019,GLOUCESTER CITY COUNCIL
Gloucester City Council,23UE,Head of Communities,PP001,Conference Fees,553,16/09/2019,12/09/2019,Hilton,BIRMINGHAM,,B401PP,REDACTED,556*********3063,3504,HILTON,464.1,Pound Sterling (826),1,464.1,Debit,8.54815E+22,02/10/2019,GLOUCESTER CITY COUNCIL
Gloucester City Council,23UE,Civica Admin Charges,BI002,Professional Advice/Consultants Fees,3952,17/09/2019,16/09/2019,WWW.GOV.UK,C@HMCTS.GSI.G,,LS1 2BA,REDACTED,556*********3063,8999,PROFESSIONAL SERVICES NOT ELSEWHERE CLASSIFIED,1.5,Pound Sterling (826),1,1.5,Debit,8.54815E+22,02/10/2019,GLOUCESTER CITY COUNCIL
Gloucester City Council,23UE,Civica Admin Charges,BI002,Professional Advice/Consultants Fees,3952,27/09/2019,25/09/2019,HMCOURTS-SERVICE.G,1452420100,,GL12ZG,REDACTED,556*********3063,9222,FINES,341.5,Pound Sterling (826),1,341.5,Debit,8.54815E+22,02/10/2019,GLOUCESTER CITY COUNCIL
Gloucester City Council,23UE,Transformation,MT006,Equipment and Furniture,3001,27/09/2019,26/09/2019,GSM-MULTIMEDIA GMBH,LANDAU,DEU,94405,REDACTED,556*********3063,5099,"DURABLE GOODS,NOT ELSEWHERE CLASSIFIED",76.29,Euro (978),1.093136552,69.79,Debit,7.52905E+22,02/10/2019,GLOUCESTER CITY COUNCIL
Gloucester City Council,23UE,Head of Communities,PP001,Conference Fees,553,18/09/2019,16/09/2019,PREMIER INN 44537425,LEEDS,,LS1 4BN,REDACTED,556*********5128,3811,PREMIER INN,78.5,Pound Sterling (826),1,78.5,Debit,5.5542E+22,02/10/2019,GLOUCESTER CITY COUNCIL
